[Event "Titled Tuesday Blitz August 02 Late 2022"]
[White "Shimanov, Aleksandr"]
[Black "Boros, Denes"]
[WhiteFideId "4198603"]
[BlackFideId "722340"]
[WhiteElo "2605"]
[BlackElo "2464"]
[Result "1-0"]
[Round "06"]
[TimeControl "180+1"]
[Date "2022.08.02"]
[WhiteClock "0:00:03"]
[BlackClock "0:00:09"]

1. e4 {[%clk 0:03:00]}  d6 {[%clk 0:03:00]} 2. d4 {[%clk 0:02:58]}  a6 {[%clk 0:03:00]} 3. c4 {[%clk 0:02:56]}  g6 {[%clk 0:02:54]} 4. Nc3 {[%clk 0:02:54]}  Bg7 {[%clk 0:02:55]} 5. Be3 {[%clk 0:02:52]}  Nd7 {[%clk 0:02:49]} 6. Be2 {[%clk 0:02:38]}  c5 {[%clk 0:02:45]} 7. Nf3 {[%clk 0:02:35]}  cxd4 {[%clk 0:02:38]} 8. Nxd4 {[%clk 0:02:36]}  Ngf6 {[%clk 0:02:38]} 9. O-O {[%clk 0:02:35]}  b6 {[%clk 0:02:35]} 10. f3 {[%clk 0:02:03]}  Bb7 {[%clk 0:02:34]} 11. Qd2 {[%clk 0:02:04]}  h5 {[%clk 0:02:33]} 12. Rac1 {[%clk 0:02:04]}  Rc8 {[%clk 0:02:28]} 13. Rfd1 {[%clk 0:02:02]}  h4 {[%clk 0:02:28]} 14. h3 {[%clk 0:02:01]}  Nh5 {[%clk 0:02:25]} 15. Bf1 {[%clk 0:01:55]}  Ng3 {[%clk 0:02:25]} 16. b3 {[%clk 0:01:52]}  Nc5 {[%clk 0:02:08]} 17. Nde2 {[%clk 0:01:40]}  Nxe2+ {[%clk 0:01:47]} 18. Bxe2 {[%clk 0:01:40]}  a5 {[%clk 0:01:47]} 19. Nd5 {[%clk 0:01:37]}  Rb8 {[%clk 0:01:42]} 20. Rb1 {[%clk 0:01:30]}  Be5 {[%clk 0:01:38]} 21. a3 {[%clk 0:01:27]}  Bxd5 {[%clk 0:01:34]} 22. cxd5 {[%clk 0:01:23]}  Kf8 {[%clk 0:01:30]} 23. Bb5 {[%clk 0:01:18]}  Rh5 {[%clk 0:01:16]} 24. Bc6 {[%clk 0:01:15]}  b5 {[%clk 0:01:13]} 25. b4 {[%clk 0:01:07]}  Na4 {[%clk 0:00:58]} 26. Rdc1 {[%clk 0:01:03]}  axb4 {[%clk 0:00:57]} 27. axb4 {[%clk 0:00:48]}  Kg8 {[%clk 0:00:49]} 28. Rc2 {[%clk 0:00:48]}  Qf8 {[%clk 0:00:46]} 29. f4 {[%clk 0:00:34]}  Bf6 {[%clk 0:00:43]} 30. Rb3 {[%clk 0:00:26]}  Rh8 {[%clk 0:00:29]} 31. Qd3 {[%clk 0:00:23]}  Qg7 {[%clk 0:00:24]} 32. Bxb5 {[%clk 0:00:23]}  Nb6 {[%clk 0:00:20]} 33. Bc6 {[%clk 0:00:22]}  Kh7 {[%clk 0:00:18]} 34. Ra2 {[%clk 0:00:21]}  Rhd8 {[%clk 0:00:13]} 35. Ra7 {[%clk 0:00:20]}  Kg8 {[%clk 0:00:14]} 36. Rb7 {[%clk 0:00:13]}  Na8 {[%clk 0:00:12]} 37. Rxb8 {[%clk 0:00:12]}  Rxb8 {[%clk 0:00:13]} 38. b5 {[%clk 0:00:12]}  g5 {[%clk 0:00:12]} 39. fxg5 {[%clk 0:00:12]}  Bxg5 {[%clk 0:00:13]} 40. b6 {[%clk 0:00:10]}  Bxe3+ {[%clk 0:00:12]} 41. Qxe3 {[%clk 0:00:11]}  Qa1+ {[%clk 0:00:12]} 42. Kf2 {[%clk 0:00:10]}  Qf6+ {[%clk 0:00:12]} 43. Kg1 {[%clk 0:00:06]}  Qa1+ {[%clk 0:00:12]} 44. Kf2 {[%clk 0:00:06]}  Qf6+ {[%clk 0:00:11]} 45. Ke2 {[%clk 0:00:06]}  Qe5 {[%clk 0:00:11]} 46. b7 {[%clk 0:00:04]}  Nc7 {[%clk 0:00:10]} 47. Rd3 {[%clk 0:00:04]}  Na6 {[%clk 0:00:10]} 48. Qd4 {[%clk 0:00:04]}  Qf4 {[%clk 0:00:09]} 49. Rf3 {[%clk 0:00:04]}  Qg5 {[%clk 0:00:09]} 50. Kf2 {[%clk 0:00:04]}  Nc5 {[%clk 0:00:09]} 51. Qe3 {[%clk 0:00:04]}  Qg7 {[%clk 0:00:09]} 52. Rf4 {[%clk 0:00:04]}  Kf8 {[%clk 0:00:07]} 53. Kg1 {[%clk 0:00:03]}  Nxb7 {[%clk 0:00:07]} 54. Rg4 {[%clk 0:00:03]}  Qa1+ {[%clk 0:00:07]} 55. Kh2 {[%clk 0:00:03]}  Qe5+ {[%clk 0:00:07]} 56. Qf4 {[%clk 0:00:04]}  Qxe4 {[%clk 0:00:07]} 57. Qxe4 {[%clk 0:00:04]}  Nc5 {[%clk 0:00:07]} 58. Qh7 {[%clk 0:00:03]}  e6 {[%clk 0:00:08]} 59. Qxh4 {[%clk 0:00:03]}  e5 {[%clk 0:00:08]} 60. Qf6 {[%clk 0:00:03]}  Ne4 {[%clk 0:00:08]} 61. Rxe4 {[%clk 0:00:03]}  Rb4 {[%clk 0:00:08]} 62. Rxb4 {[%clk 0:00:03]}  e4 {[%clk 0:00:09]} 63. Rb8# {[%clk 0:00:03]} 1-0


[Site "https://www.chess.com"]

[Event "Titled Tuesday Blitz August 02 Late 2022"]
[White "Svane, Frederik"]
[Black "Hakobyan, Aram"]
[WhiteFideId "12923044"]
[BlackFideId "13306677"]
[WhiteElo "2459"]
[BlackElo "2557"]
[Result "1-0"]
[Round "06"]
[TimeControl "180+1"]
[Date "2022.08.02"]
[WhiteClock "0:00:09"]
[BlackClock "0:00:10"]

1. e4 {[%clk 0:03:00]}  c5 {[%clk 0:02:58]} 2. Nf3 {[%clk 0:03:01]}  d6 {[%clk 0:02:58]} 3. Nc3 {[%clk 0:03:00]}  Nf6 {[%clk 0:02:58]} 4. d4 {[%clk 0:02:56]}  cxd4 {[%clk 0:02:59]} 5. Nxd4 {[%clk 0:02:57]}  Bd7 {[%clk 0:02:59]} 6. Bg5 {[%clk 0:02:56]}  e6 {[%clk 0:02:56]} 7. Qd2 {[%clk 0:02:56]}  a6 {[%clk 0:02:46]} 8. O-O-O {[%clk 0:02:55]}  h6 {[%clk 0:02:46]} 9. Be3 {[%clk 0:02:50]}  Ng4 {[%clk 0:02:45]} 10. f4 {[%clk 0:02:50]}  Nxe3 {[%clk 0:02:44]} 11. Qxe3 {[%clk 0:02:51]}  Be7 {[%clk 0:02:44]} 12. g4 {[%clk 0:02:49]}  Nc6 {[%clk 0:02:44]} 13. Nf3 {[%clk 0:02:47]}  Rc8 {[%clk 0:02:43]} 14. h4 {[%clk 0:02:47]}  Qa5 {[%clk 0:02:40]} 15. Kb1 {[%clk 0:02:43]}  Bf6 {[%clk 0:02:14]} 16. e5 {[%clk 0:02:28]}  dxe5 {[%clk 0:02:07]} 17. Ne4 {[%clk 0:02:18]}  Be7 {[%clk 0:02:06]} 18. fxe5 {[%clk 0:02:18]}  Nb4 {[%clk 0:01:41]} 19. Nc3 {[%clk 0:02:15]}  Rxc3 {[%clk 0:01:34]} 20. Qxc3 {[%clk 0:02:16]}  Qxa2+ {[%clk 0:01:34]} 21. Kc1 {[%clk 0:02:16]}  Nd5 {[%clk 0:01:24]} 22. Qb3 {[%clk 0:01:50]}  Qa1+ {[%clk 0:01:22]} 23. Kd2 {[%clk 0:01:50]}  Qa5+ {[%clk 0:01:23]} 24. Kc1 {[%clk 0:01:48]}  O-O {[%clk 0:01:22]} 25. Kb1 {[%clk 0:01:45]}  Ba4 {[%clk 0:01:21]} 26. Rxd5 {[%clk 0:01:26]}  exd5 {[%clk 0:01:19]} 27. Qd3 {[%clk 0:01:26]}  Bb5 {[%clk 0:01:14]} 28. Qf5 {[%clk 0:01:23]}  Bc4 {[%clk 0:00:43]} 29. Bxc4 {[%clk 0:00:27]}  dxc4 {[%clk 0:00:44]} 30. Qd7 {[%clk 0:00:27]}  Qc5 {[%clk 0:00:30]} 31. g5 {[%clk 0:00:18]}  Rd8 {[%clk 0:00:20]} 32. Qxb7 {[%clk 0:00:18]}  c3 {[%clk 0:00:20]} 33. gxh6 {[%clk 0:00:16]}  cxb2 {[%clk 0:00:20]} 34. Rg1 {[%clk 0:00:15]}  g6 {[%clk 0:00:18]} 35. e6 {[%clk 0:00:14]}  Qa3 {[%clk 0:00:17]} 36. exf7+ {[%clk 0:00:14]}  Kf8 {[%clk 0:00:16]} 37. Qxb2 {[%clk 0:00:11]}  Qxb2+ {[%clk 0:00:16]} 38. Kxb2 {[%clk 0:00:12]}  Kxf7 {[%clk 0:00:16]} 39. Ne5+ {[%clk 0:00:12]}  Ke6 {[%clk 0:00:17]} 40. Nxg6 {[%clk 0:00:12]}  Rb8+ {[%clk 0:00:17]} 41. Kc1 {[%clk 0:00:10]}  Bc5 {[%clk 0:00:16]} 42. Rg3 {[%clk 0:00:04]}  Bd6 {[%clk 0:00:14]} 43. Rg5 {[%clk 0:00:05]}  Kf6 {[%clk 0:00:14]} 44. h7 {[%clk 0:00:05]}  Ba3+ {[%clk 0:00:02]} 45. Kd1 {[%clk 0:00:04]}  Rd8+ {[%clk 0:00:03]} 46. Ke2 {[%clk 0:00:04]}  Re8+ {[%clk 0:00:04]} 47. Kd3 {[%clk 0:00:04]}  Rd8+ {[%clk 0:00:03]} 48. Kc4 {[%clk 0:00:04]}  Bc1 {[%clk 0:00:02]} 49. Rd5 {[%clk 0:00:01]}  Rc8+ {[%clk 0:00:02]} 50. Rc5 {[%clk 0:00:01]}  Bh6 {[%clk 0:00:03]} 51. Rxc8 {[%clk 0:00:02]}  Kxg6 {[%clk 0:00:04]} 52. h8=Q {[%clk 0:00:02]}  Kh5 {[%clk 0:00:05]} 53. Qg8 {[%clk 0:00:03]}  Kxh4 {[%clk 0:00:05]} 54. Qd5 {[%clk 0:00:04]}  Bg5 {[%clk 0:00:06]} 55. Rh8+ {[%clk 0:00:04]}  Kg4 {[%clk 0:00:07]} 56. Rg8 {[%clk 0:00:05]}  Kg3 {[%clk 0:00:08]} 57. Qxg5+ {[%clk 0:00:06]}  Kf2 {[%clk 0:00:09]} 58. Qg3+ {[%clk 0:00:07]}  Ke2 {[%clk 0:00:09]} 59. Re8+ {[%clk 0:00:07]}  Kd1 {[%clk 0:00:10]} 60. Re1+ {[%clk 0:00:08]}  Kd2 {[%clk 0:00:10]} 61. Qc3# {[%clk 0:00:09]} 1-0


[Site "https://www.chess.com"]

[Event "Titled Tuesday Blitz August 02 Late 2022"]
[White "Szabo, Marcell"]
[Black "Vasquez Schroeder, Rodrigo"]
[WhiteFideId "2072033"]
[BlackFideId "3400042"]
[WhiteElo "1777"]
[BlackElo "2567"]
[Result "0-1"]
[Round "06"]
[TimeControl "180+1"]
[Date "2022.08.02"]
[WhiteClock "0:00:45"]
[BlackClock "0:01:35"]

1. e4 {[%clk 0:03:00]}  c5 {[%clk 0:02:54]} 2. Nf3 {[%clk 0:03:00]}  d6 {[%clk 0:02:54]} 3. Bb5+ {[%clk 0:03:00]}  Bd7 {[%clk 0:02:54]} 4. c4 {[%clk 0:03:01]}  a6 {[%clk 0:02:53]} 5. Bxd7+ {[%clk 0:03:00]}  Nxd7 {[%clk 0:02:53]} 6. Nc3 {[%clk 0:03:00]}  Rc8 {[%clk 0:02:53]} 7. d3 {[%clk 0:03:01]}  g6 {[%clk 0:02:52]} 8. O-O {[%clk 0:03:01]}  Bg7 {[%clk 0:02:52]} 9. h3 {[%clk 0:03:02]}  Ngf6 {[%clk 0:02:53]} 10. Be3 {[%clk 0:03:02]}  O-O {[%clk 0:02:52]} 11. Qd2 {[%clk 0:03:03]}  Nb8 {[%clk 0:02:48]} 12. a4 {[%clk 0:03:01]}  Nc6 {[%clk 0:02:48]} 13. Nd5 {[%clk 0:02:57]}  Nd7 {[%clk 0:02:47]} 14. d4 {[%clk 0:02:55]}  e6 {[%clk 0:02:45]} 15. Nc3 {[%clk 0:02:55]}  Na5 {[%clk 0:02:43]} 16. Qd3 {[%clk 0:02:35]}  Nxc4 {[%clk 0:02:32]} 17. Qxc4 {[%clk 0:02:22]}  cxd4 {[%clk 0:02:32]} 18. Qxc8 {[%clk 0:02:19]}  Qxc8 {[%clk 0:02:30]} 19. Bxd4 {[%clk 0:02:19]}  Bxd4 {[%clk 0:02:28]} 20. Nxd4 {[%clk 0:02:20]}  Ne5 {[%clk 0:02:25]} 21. Rfd1 {[%clk 0:02:20]}  Rd8 {[%clk 0:02:24]} 22. Rac1 {[%clk 0:02:18]}  Qb8 {[%clk 0:02:24]} 23. f4 {[%clk 0:02:16]}  Nc6 {[%clk 0:02:19]} 24. Nf3 {[%clk 0:02:09]}  b5 {[%clk 0:02:15]} 25. axb5 {[%clk 0:02:07]}  axb5 {[%clk 0:02:16]} 26. Ne2 {[%clk 0:02:00]}  Qb6+ {[%clk 0:02:15]} 27. Kh2 {[%clk 0:01:59]}  d5 {[%clk 0:02:15]} 28. exd5 {[%clk 0:01:53]}  Rxd5 {[%clk 0:02:15]} 29. Rxd5 {[%clk 0:01:50]}  exd5 {[%clk 0:02:15]} 30. Rd1 {[%clk 0:01:51]}  Qc5 {[%clk 0:02:14]} 31. Nc3 {[%clk 0:01:44]}  d4 {[%clk 0:02:10]} 32. Ne2 {[%clk 0:01:38]}  Qb4 {[%clk 0:02:02]} 33. Nexd4 {[%clk 0:01:24]}  Nxd4 {[%clk 0:02:00]} 34. Rxd4 {[%clk 0:01:24]}  Qxb2 {[%clk 0:02:00]} 35. Rd8+ {[%clk 0:01:24]}  Kg7 {[%clk 0:01:59]} 36. Ne5 {[%clk 0:01:24]}  Qf2 {[%clk 0:01:55]} 37. Nd3 {[%clk 0:01:17]}  Qd2 {[%clk 0:01:51]} 38. Rd7 {[%clk 0:01:07]}  b4 {[%clk 0:01:51]} 39. Kg3 {[%clk 0:01:06]}  b3 {[%clk 0:01:51]} 40. Ne5 {[%clk 0:01:06]}  Qe3+ {[%clk 0:01:46]} 41. Kg4 {[%clk 0:00:43]}  h5+ {[%clk 0:01:40]} 42. Kg5 {[%clk 0:00:43]}  Qg3+ {[%clk 0:01:36]} 43. Ng4 {[%clk 0:00:44]}  hxg4 {[%clk 0:01:36]} 44. hxg4 {[%clk 0:00:45]}  Qc3 {[%clk 0:01:35]} 0-1


[Site "https://www.chess.com"]

[Event "Titled Tuesday Blitz August 02 Late 2022"]
[White "Tanenbaum, Zachary"]
[Black "Marczuk, Dominik"]
[WhiteFideId "2060850"]
[BlackFideId "1111264"]
[WhiteElo "2175"]
[BlackElo "1901"]
[Result "1-0"]
[Round "06"]
[TimeControl "180+1"]
[Date "2022.08.02"]
[WhiteClock "0:00:14"]
[BlackClock "0:00:03"]

1. e4 {[%clk 0:03:00]}  c5 {[%clk 0:03:00]} 2. Nf3 {[%clk 0:03:01]}  d6 {[%clk 0:03:00]} 3. d4 {[%clk 0:03:01]}  cxd4 {[%clk 0:03:01]} 4. Nxd4 {[%clk 0:03:02]}  Nf6 {[%clk 0:03:01]} 5. Nc3 {[%clk 0:03:02]}  a6 {[%clk 0:03:02]} 6. Be3 {[%clk 0:03:03]}  e5 {[%clk 0:03:02]} 7. Nb3 {[%clk 0:03:03]}  Be7 {[%clk 0:03:02]} 8. h3 {[%clk 0:03:03]}  Be6 {[%clk 0:03:00]} 9. f4 {[%clk 0:03:03]}  O-O {[%clk 0:02:45]} 10. Qf3 {[%clk 0:02:58]}  exf4 {[%clk 0:02:14]} 11. Bxf4 {[%clk 0:02:57]}  Nc6 {[%clk 0:02:14]} 12. O-O-O {[%clk 0:02:56]}  Nd7 {[%clk 0:02:14]} 13. Qe3 {[%clk 0:02:53]}  Nce5 {[%clk 0:02:05]} 14. Kb1 {[%clk 0:02:50]}  Rc8 {[%clk 0:02:05]} 15. g4 {[%clk 0:02:50]}  Qb6 {[%clk 0:01:47]} 16. Qg3 {[%clk 0:02:27]}  Nc5 {[%clk 0:01:43]} 17. Nxc5 {[%clk 0:02:27]}  Qxc5 {[%clk 0:01:42]} 18. g5 {[%clk 0:02:24]}  b5 {[%clk 0:01:41]} 19. Rh2 {[%clk 0:02:19]}  Rfe8 {[%clk 0:01:25]} 20. h4 {[%clk 0:02:13]}  Ng6 {[%clk 0:00:54]} 21. Be3 {[%clk 0:01:50]}  Qc7 {[%clk 0:00:27]} 22. h5 {[%clk 0:01:47]}  Ne5 {[%clk 0:00:26]} 23. Bf4 {[%clk 0:01:37]}  Bf8 {[%clk 0:00:22]} 24. Nd5 {[%clk 0:01:31]}  Bxd5 {[%clk 0:00:22]} 25. exd5 {[%clk 0:01:32]}  Nc4 {[%clk 0:00:20]} 26. g6 {[%clk 0:01:28]}  h6 {[%clk 0:00:19]} 27. gxf7+ {[%clk 0:01:25]}  Qxf7 {[%clk 0:00:19]} 28. Bh3 {[%clk 0:01:24]}  Rc7 {[%clk 0:00:18]} 29. Be6 {[%clk 0:01:24]}  Rxe6 {[%clk 0:00:18]} 30. dxe6 {[%clk 0:01:24]}  Qxe6 {[%clk 0:00:19]} 31. Bc1 {[%clk 0:00:43]}  Rf7 {[%clk 0:00:16]} 32. b3 {[%clk 0:00:41]}  Ne5 {[%clk 0:00:16]} 33. Bb2 {[%clk 0:00:40]}  Be7 {[%clk 0:00:15]} 34. Re2 {[%clk 0:00:38]}  Bf6 {[%clk 0:00:16]} 35. Red2 {[%clk 0:00:35]}  Be7 {[%clk 0:00:14]} 36. Rd5 {[%clk 0:00:31]}  Rf3 {[%clk 0:00:12]} 37. Rxe5 {[%clk 0:00:25]}  Qf7 {[%clk 0:00:05]} 38. Rxe7 {[%clk 0:00:24]}  Rxg3 {[%clk 0:00:05]} 39. Rxf7 {[%clk 0:00:24]}  Kxf7 {[%clk 0:00:06]} 40. Rxd6 {[%clk 0:00:22]}  Rg1+ {[%clk 0:00:06]} 41. Bc1 {[%clk 0:00:23]}  Rh1 {[%clk 0:00:07]} 42. Rxa6 {[%clk 0:00:22]}  Rxh5 {[%clk 0:00:07]} 43. Ra7+ {[%clk 0:00:21]}  Kf6 {[%clk 0:00:06]} 44. Bb2+ {[%clk 0:00:21]}  Kf5 {[%clk 0:00:06]} 45. Rf7+ {[%clk 0:00:20]}  Ke6 {[%clk 0:00:06]} 46. Rxg7 {[%clk 0:00:20]}  Rh1+ {[%clk 0:00:07]} 47. Bc1 {[%clk 0:00:21]}  h5 {[%clk 0:00:07]} 48. Rg6+ {[%clk 0:00:20]}  Kf5 {[%clk 0:00:07]} 49. Rg5+ {[%clk 0:00:20]}  Ke4 {[%clk 0:00:07]} 50. Rxb5 {[%clk 0:00:21]}  h4 {[%clk 0:00:07]} 51. Rh5 {[%clk 0:00:20]}  h3 {[%clk 0:00:08]} 52. a4 {[%clk 0:00:20]}  Kf3 {[%clk 0:00:07]} 53. a5 {[%clk 0:00:20]}  Kg4 {[%clk 0:00:08]} 54. Rh8 {[%clk 0:00:18]}  Rf1 {[%clk 0:00:07]} 55. a6 {[%clk 0:00:17]}  Rf7 {[%clk 0:00:08]} 56. b4 {[%clk 0:00:15]}  Re7 {[%clk 0:00:02]} 57. b5 {[%clk 0:00:15]}  Re5 {[%clk 0:00:02]} 58. a7 {[%clk 0:00:13]}  Rxb5+ {[%clk 0:00:03]} 59. Bb2 {[%clk 0:00:14]}  Ra5 {[%clk 0:00:01]} 60. a8=Q {[%clk 0:00:14]}  Rxa8 {[%clk 0:00:02]} 61. Rxa8 {[%clk 0:00:14]}  h2 {[%clk 0:00:03]} 62. Rh8 {[%clk 0:00:14]}  Kf3 {[%clk 0:00:03]} 1-0


[Site "https://www.chess.com"]

[Event "Titled Tuesday Blitz August 02 Late 2022"]
[White "Yoo, Christopher Woojin"]
[Black "Mardov, Dimitar"]
[WhiteFideId "30909694"]
[BlackFideId "30919495"]
[WhiteElo "2105"]
[BlackElo "2185"]
[Result "0-1"]
[Round "06"]
[TimeControl "180+1"]
[Date "2022.08.02"]
[WhiteClock "0:00:03"]
[BlackClock "0:00:06"]

1. e4 {[%clk 0:03:00]}  e5 {[%clk 0:02:57]} 2. Nf3 {[%clk 0:03:00]}  Nc6 {[%clk 0:02:57]} 3. Bb5 {[%clk 0:03:00]}  a6 {[%clk 0:02:57]} 4. Ba4 {[%clk 0:03:00]}  d6 {[%clk 0:02:57]} 5. O-O {[%clk 0:02:59]}  Bd7 {[%clk 0:02:57]} 6. d4 {[%clk 0:02:58]}  Nxd4 {[%clk 0:02:57]} 7. Bxd7+ {[%clk 0:02:57]}  Qxd7 {[%clk 0:02:58]} 8. Nxd4 {[%clk 0:02:58]}  exd4 {[%clk 0:02:59]} 9. Qxd4 {[%clk 0:02:58]}  Nf6 {[%clk 0:02:56]} 10. Nc3 {[%clk 0:02:56]}  Be7 {[%clk 0:02:56]} 11. Rd1 {[%clk 0:02:56]}  O-O {[%clk 0:02:57]} 12. e5 {[%clk 0:02:55]}  Ne8 {[%clk 0:02:38]} 13. Bf4 {[%clk 0:02:46]}  Rd8 {[%clk 0:02:16]} 14. Nd5 {[%clk 0:02:31]}  Qe6 {[%clk 0:01:24]} 15. Rd3 {[%clk 0:01:56]}  f6 {[%clk 0:01:08]} 16. Nxe7+ {[%clk 0:01:10]}  Qxe7 {[%clk 0:01:07]} 17. Qd5+ {[%clk 0:01:05]}  Kh8 {[%clk 0:00:44]} 18. exd6 {[%clk 0:00:43]}  Nxd6 {[%clk 0:00:41]} 19. Rad1 {[%clk 0:00:36]}  Rfe8 {[%clk 0:00:32]} 20. h3 {[%clk 0:00:36]}  h6 {[%clk 0:00:30]} 21. Re3 {[%clk 0:00:31]}  Qd7 {[%clk 0:00:14]} 22. Red3 {[%clk 0:00:11]}  b5 {[%clk 0:00:11]} 23. Qc5 {[%clk 0:00:08]}  Qe7 {[%clk 0:00:03]} 24. Qc6 {[%clk 0:00:06]}  Nc4 {[%clk 0:00:02]} 25. Rxd8 {[%clk 0:00:03]}  Rxd8 {[%clk 0:00:02]} 26. Rxd8+ {[%clk 0:00:03]}  Qxd8 {[%clk 0:00:03]} 27. b3 {[%clk 0:00:03]}  Ne5 {[%clk 0:00:02]} 28. Qe4 {[%clk 0:00:02]}  Qd1+ {[%clk 0:00:02]} 29. Kh2 {[%clk 0:00:02]}  Qd6 {[%clk 0:00:03]} 30. a4 {[%clk 0:00:02]}  bxa4 {[%clk 0:00:02]} 31. bxa4 {[%clk 0:00:03]}  Qc5 {[%clk 0:00:02]} 32. Qa8+ {[%clk 0:00:03]}  Kh7 {[%clk 0:00:02]} 33. Qe4+ {[%clk 0:00:02]}  Kh8 {[%clk 0:00:02]} 34. Be3 {[%clk 0:00:02]}  Qc6 {[%clk 0:00:01]} 35. Qxc6 {[%clk 0:00:01]}  Nxc6 {[%clk 0:00:02]} 36. Bf4 {[%clk 0:00:02]}  Nb4 {[%clk 0:00:02]} 37. c3 {[%clk 0:00:02]}  Nd5 {[%clk 0:00:02]} 38. Bd2 {[%clk 0:00:02]}  Nb6 {[%clk 0:00:02]} 39. a5 {[%clk 0:00:02]}  Nc4 {[%clk 0:00:03]} 40. Bf4 {[%clk 0:00:02]}  Nxa5 {[%clk 0:00:02]} 41. Bxc7 {[%clk 0:00:03]}  Nc4 {[%clk 0:00:03]} 42. Kg3 {[%clk 0:00:02]}  a5 {[%clk 0:00:04]} 43. Kf3 {[%clk 0:00:01]}  a4 {[%clk 0:00:04]} 44. Bd8 {[%clk 0:00:01]}  a3 {[%clk 0:00:05]} 45. Ke4 {[%clk 0:00:01]}  a2 {[%clk 0:00:05]} 46. Kd4 {[%clk 0:00:02]}  a1=Q {[%clk 0:00:06]} 47. Kxc4 {[%clk 0:00:03]}  Qa8 {[%clk 0:00:06]} 48. Kc5 {[%clk 0:00:03]}  Qxd8 {[%clk 0:00:06]} 0-1


[Site "https://www.chess.com"]

[Event "Titled Tuesday Blitz August 02 Late 2022"]
[White "Awatramani, Janak"]
[Black "Salem, A.R. Saleh"]
[WhiteFideId "2608359"]
[BlackFideId "9301348"]
[WhiteElo "2772"]
[BlackElo "2679"]
[Result "0-1"]
[Round "07"]
[TimeControl "180+1"]
[Date "2022.08.02"]
[WhiteClock "0:00:03"]
[BlackClock "0:00:15"]

1. b3 {[%clk 0:03:00]}  d5 {[%clk 0:02:59]} 2. Bb2 {[%clk 0:03:01]}  c5 {[%clk 0:03:00]} 3. e3 {[%clk 0:03:01]}  a6 {[%clk 0:03:01]} 4. Nf3 {[%clk 0:03:02]}  Nc6 {[%clk 0:03:01]} 5. d4 {[%clk 0:03:02]}  cxd4 {[%clk 0:03:01]} 6. Nxd4 {[%clk 0:03:03]}  Nf6 {[%clk 0:03:02]} 7. Nd2 {[%clk 0:03:02]}  Nxd4 {[%clk 0:03:01]} 8. Bxd4 {[%clk 0:03:02]}  Qc7 {[%clk 0:03:01]} 9. f4 {[%clk 0:02:44]}  Bg4 {[%clk 0:02:58]} 10. Be2 {[%clk 0:02:37]}  Bxe2 {[%clk 0:02:57]} 11. Qxe2 {[%clk 0:02:31]}  Qxc2 {[%clk 0:02:57]} 12. O-O {[%clk 0:02:29]}  Ne4 {[%clk 0:02:57]} 13. Rfd1 {[%clk 0:02:29]}  Rc8 {[%clk 0:02:35]} 14. Qe1 {[%clk 0:02:08]}  Nxd2 {[%clk 0:02:03]} 15. Rac1 {[%clk 0:02:04]}  Nf3+ {[%clk 0:01:45]} 16. gxf3 {[%clk 0:02:02]}  Qg6+ {[%clk 0:01:45]} 17. Kf2 {[%clk 0:01:59]}  Rc2+ {[%clk 0:01:41]} 18. Rd2 {[%clk 0:01:59]}  Rc6 {[%clk 0:01:35]} 19. Rxc6 {[%clk 0:01:55]}  bxc6 {[%clk 0:01:34]} 20. Qe2 {[%clk 0:01:53]}  e5 {[%clk 0:01:34]} 21. Bxe5 {[%clk 0:01:48]}  Bb4 {[%clk 0:01:30]} 22. Rd1 {[%clk 0:01:33]}  f6 {[%clk 0:01:30]} 23. Bd4 {[%clk 0:01:18]}  O-O {[%clk 0:01:15]} 24. Qxa6 {[%clk 0:01:11]}  Qc2+ {[%clk 0:00:48]} 25. Qe2 {[%clk 0:01:11]}  Qf5 {[%clk 0:00:49]} 26. Rc1 {[%clk 0:01:06]}  Rc8 {[%clk 0:00:24]} 27. Qc2 {[%clk 0:01:01]}  Qh3 {[%clk 0:00:22]} 28. Rg1 {[%clk 0:00:39]}  Qxh2+ {[%clk 0:00:20]} 29. Rg2 {[%clk 0:00:39]}  Qh4+ {[%clk 0:00:20]} 30. Kg1 {[%clk 0:00:37]}  Qe1+ {[%clk 0:00:19]} 31. Kh2 {[%clk 0:00:36]}  Qh4+ {[%clk 0:00:20]} 32. Kg1 {[%clk 0:00:36]}  c5 {[%clk 0:00:20]} 33. Qf5 {[%clk 0:00:32]}  Qe1+ {[%clk 0:00:20]} 34. Kh2 {[%clk 0:00:32]}  Qh4+ {[%clk 0:00:21]} 35. Kg1 {[%clk 0:00:33]}  Rf8 {[%clk 0:00:18]} 36. Qxd5+ {[%clk 0:00:19]}  Kh8 {[%clk 0:00:18]} 37. Bxc5 {[%clk 0:00:13]}  Qe1+ {[%clk 0:00:18]} 38. Kh2 {[%clk 0:00:13]}  Qh4+ {[%clk 0:00:19]} 39. Kg1 {[%clk 0:00:14]}  Rc8 {[%clk 0:00:20]} 40. Rc2 {[%clk 0:00:09]}  Qg3+ {[%clk 0:00:18]} 41. Kf1 {[%clk 0:00:07]}  Qh3+ {[%clk 0:00:17]} 42. Kg1 {[%clk 0:00:06]}  Ba5 {[%clk 0:00:15]} 43. b4 {[%clk 0:00:05]}  Rd8 {[%clk 0:00:15]} 44. Bd6 {[%clk 0:00:02]}  Bxb4 {[%clk 0:00:15]} 45. Bxb4 {[%clk 0:00:02]}  Rxd5 {[%clk 0:00:15]} 46. Rc8+ {[%clk 0:00:03]}  Qxc8 {[%clk 0:00:15]} 0-1


[Site "https://www.chess.com"]

[Event "Titled Tuesday Blitz August 02 Late 2022"]
[White "Bilych, Olexiy"]
[Black "Martic, Ivan"]
[WhiteFideId "14156504"]
[BlackFideId "929301"]
[WhiteElo "2189"]
[BlackElo "2355"]
[Result "1-0"]
[Round "07"]
[TimeControl "180+1"]
[Date "2022.08.02"]
[WhiteClock "0:01:02"]
[BlackClock "0:01:06"]

1. e4 {[%clk 0:02:59]}  c5 {[%clk 0:02:59]} 2. Nf3 {[%clk 0:03:00]}  Nf6 {[%clk 0:03:00]} 3. e5 {[%clk 0:02:59]}  Nd5 {[%clk 0:03:00]} 4. Nc3 {[%clk 0:03:00]}  Nxc3 {[%clk 0:03:00]} 5. dxc3 {[%clk 0:03:00]}  Nc6 {[%clk 0:03:00]} 6. Bf4 {[%clk 0:02:56]}  Qb6 {[%clk 0:03:00]} 7. b3 {[%clk 0:02:55]}  e6 {[%clk 0:03:01]} 8. Qd2 {[%clk 0:02:52]}  Qc7 {[%clk 0:03:00]} 9. h4 {[%clk 0:02:51]}  h6 {[%clk 0:03:00]} 10. h5 {[%clk 0:02:51]}  b6 {[%clk 0:02:57]} 11. O-O-O {[%clk 0:02:49]}  Bb7 {[%clk 0:02:56]} 12. Kb2 {[%clk 0:02:43]}  a6 {[%clk 0:02:56]} 13. Be2 {[%clk 0:02:19]}  b5 {[%clk 0:02:56]} 14. Qe3 {[%clk 0:02:18]}  c4 {[%clk 0:02:54]} 15. Rd2 {[%clk 0:02:12]}  Be7 {[%clk 0:02:39]} 16. Rhd1 {[%clk 0:02:11]}  Rd8 {[%clk 0:02:37]} 17. g4 {[%clk 0:02:04]}  Qa5 {[%clk 0:01:52]} 18. g5 {[%clk 0:01:56]}  Ba3+ {[%clk 0:01:48]} 19. Kb1 {[%clk 0:01:56]}  Ne7 {[%clk 0:01:48]} 20. gxh6 {[%clk 0:01:48]}  gxh6 {[%clk 0:01:48]} 21. Rg1 {[%clk 0:01:19]}  Nd5 {[%clk 0:01:41]} 22. Rxd5 {[%clk 0:01:19]}  Bxd5 {[%clk 0:01:42]} 23. b4 {[%clk 0:01:15]}  Qc7 {[%clk 0:01:21]} 24. Bxh6 {[%clk 0:01:11]}  a5 {[%clk 0:01:22]} 25. Bg7 {[%clk 0:01:08]}  Rxh5 {[%clk 0:01:21]} 26. Bf6 {[%clk 0:01:08]}  Kf8 {[%clk 0:01:12]} 27. Nd4 {[%clk 0:01:05]}  Rh7 {[%clk 0:01:06]} 28. Qg5 {[%clk 0:01:02]} 1-0


[Site "https://www.chess.com"]